bitfinex-derivatives/quotes_BTCF0:USTF0_20241217
["timestamp","ask_amount","ask_price","bid_price","bid_amount"]
[1734453876618,0.242553,106710.0,106700.0,0.046857]
[1734453877410,0.242553,106710.0,106700.0,0.13139693]
[1734453878115,0.1957,106710.0,106700.0,0.13139693]
[1734453878324,0.1957,106710.0,106700.0,0.49219693]
[1734453878720,0.4114,106720.0,106710.0,0.046853]
[1734453878921,0.4114,106720.0,106710.0,0.49219293]
[1734453879221,0.2126,106720.0,106710.0,0.13139293]
[1734453879421,0.2126,106720.0,106710.0,0.49219293]
[1734453879623,1.78883886,106730.0,106720.0,0.046849]
[1734453879810,0.6316896,106730.0,106720.0,0.046849]
[1734453880413,0.2708896,106730.0,106720.0,0.046849]
[1734453881719,0.6316896,106730.0,106720.0,0.046849]
[1734453882019,0.2708896,106730.0,106720.0,0.046849]
[1734453882715,0.6316896,106730.0,106720.0,0.046849]
[1734453885427,0.5848426,106730.0,106720.0,0.046849]
[1734453886021,0.5848426,106730.0,106720.0,0.13138893]
[1734453886921,0.6316866,106730.0,106720.0,0.046849]
[1734453888932,0.5848426,106730.0,106720.0,0.13138893]
[1734453889128,0.2055,106730.0,106720.0,0.13138893]
[1734453889325,0.18190824,106730.0,106720.0,0.13138893]
[1734453889724,0.54270824,106730.0,106720.0,0.13138893]
[1734453889928,0.18190824,106730.0,106720.0,0.13138893]
[1734453890130,0.22875224,106730.0,106720.0,0.13138893]
[1734453890825,0.58955224,106730.0,106720.0,0.13138893]
[1734453891137,0.58955224,106730.0,106720.0,0.046849]
[1734453893030,0.60807846,106730.0,106720.0,0.046849]
[1734453896231,0.60807846,106730.0,106710.0,0.70368257]
[1734453896232,0.046849,106720.0,106710.0,0.06444164]
[1734453896828,0.046849,106720.0,106710.0,0.50978157]
[1734453897026,0.60808046,106730.0,106720.0,0.046849]
[1734453897231,1.91412001,106740.0,106730.0,0.046844]
[1734453897528,0.2459392,106750.0,106740.0,0.04684]
[1734453898234,0.6067392,106750.0,106740.0,0.04684]
[1734453900537,0.046844,106730.0,106720.0,0.256047]
[1734453900727,0.407644,106730.0,106720.0,0.256047]
[1734453901031,0.81224,106740.0,106720.0,0.2648213]
[1734453901231,0.046844,106730.0,106720.0,0.34058693]
[1734453901420,0.246544,106730.0,106720.0,0.34058693]
[1734453901620,0.1997,106730.0,106720.0,0.34058693]
[1734453902025,0.246544,106730.0,106720.0,0.34058693]
[1734453902524,0.1997,106730.0,106720.0,0.34058693]
[1734453902725,2.312241,106740.0,106730.0,0.046844]
[1734453902929,0.407641,106740.0,106730.0,0.13138393]
[1734453903235,0.407641,106740.0,106730.0,0.046844]
[1734453906122,0.046846,106730.0,106720.0,0.046846]
[1734453906325,0.617146,106730.0,106720.0,0.05562392]
[1734453906726,0.617146,106730.0,106720.0,0.046846]
[1734453908435,0.617146,106730.0,106720.0,0.13138593]
[1734453908637,0.5703,106730.0,106720.0,0.13138593]
[1734453909028,0.617144,106730.0,106720.0,0.13138593]
[1734453909228,0.617144,106730.0,106710.0,0.76848964]
[1734453909432,0.046849,106720.0,106710.0,0.43401756]
[1734453909837,0.407649,106720.0,106710.0,0.02636756]
[1734453910030,0.046857,106710.0,106690.0,0.05704261]
[1734453910334,0.046857,106710.0,106690.0,0.00877792]
[1734453910335,0.42781204,106700.0,106690.0,0.00877792]
[1734453910533,2.16767004,106700.0,106690.0,0.046862]
[1734453910930,0.046864,106690.0,106680.0,0.046865]
[1734453911534,2.12081204,106700.0,106690.0,0.046862]
[1734453911535,2.08313011,106700.0,106690.0,0.046862]
[1734453911735,2.0538,106700.0,106670.0,0.83991171]
[1734453911934,0.046866,106680.0,106670.0,0.63001471]
[1734453912138,0.046866,106680.0,106670.0,0.01784471]
[1734453912139,0.13140593,106680.0,106670.0,0.01784471]
[1734453912346,0.046875,106660.0,106650.0,0.3608]
[1734453912536,0.046879,106650.0,106640.0,0.42573521]
[1734453912933,0.1981,106650.0,106640.0,0.06493521]
[1734453914039,0.3608,106660.0,106650.0,0.046879]
[1734453914328,0.407675,106660.0,106650.0,0.046879]
[1734453916037,0.3608,106660.0,106650.0,0.046879]
[1734453916231,0.407675,106660.0,106650.0,0.046879]
[1734453918644,0.44533993,106660.0,106640.0,0.37885321]
[1734453918838,0.046879,106650.0,106640.0,0.06493521]
[1734453919943,0.407677,106660.0,106650.0,0.046879]
[1734453920638,0.81754572,106670.0,106650.0,0.13141893]
[1734453920844,0.81754572,106670.0,106660.0,0.046875]
[1734453922341,0.77067372,106670.0,106660.0,0.046875]
[1734453922533,0.247371,106670.0,106660.0,0.046875]
[1734453922740,0.608171,106670.0,106660.0,0.046875]
[1734453923142,0.046878,106660.0,106650.0,0.046879]
[1734453923449,0.407678,106660.0,106650.0,0.046879]
[1734453923640,0.046879,106650.0,106640.0,0.046883]
[1734453924534,0.49221493,106660.0,106630.0,0.5869604]
[1734453924735,0.49221493,106660.0,106630.0,0.4239464]
[1734453924736,0.046884,106640.0,106630.0,0.4239464]
[1734453925546,0.606482,106650.0,106640.0,0.046884]
[1734453925751,0.407682,106650.0,106640.0,0.046884]
[1734453926154,0.046882,106650.0,106640.0,0.046884]
[1734453926360,0.407677,106660.0,106650.0,0.046879]
[1734453926542,0.42352793,106660.0,106650.0,0.046879]
[1734453926743,0.046882,106650.0,106640.0,0.046882]
[1734453926943,0.407677,106660.0,106650.0,0.046879]
[1734453928554,0.3608,106660.0,106650.0,0.13141893]
[1734453928856,0.407675,106660.0,106650.0,0.463279]
[1734453929651,0.046875,106660.0,106650.0,0.463279]
[1734453929846,0.046883,106650.0,106640.0,0.046883]
[1734453930050,0.13142293,106650.0,106640.0,0.046883]
[1734453930957,1.63142293,106650.0,106640.0,0.046883]
[1734453931454,0.046884,106640.0,106630.0,0.4795464]
[1734453933846,0.13142393,106640.0,106630.0,0.0631464]
[1734453934243,0.13142393,106640.0,106630.0,0.0162604]
[1734453934443,0.046888,106630.0,106620.0,0.40769]
[1734453935349,0.046888,106630.0,106620.0,0.42219365]
[1734453939050,0.803486,106640.0,106630.0,0.046888]
[1734453939361,2.21907141,106650.0,106640.0,0.046884]
[1734453939659,2.4269514,106650.0,106640.0,0.046884]
[1734453939964,0.616682,106650.0,106640.0,0.046884]
[1734453940165,0.33952436,106650.0,106640.0,0.046884]
[1734453940358,0.70032436,106650.0,106640.0,0.046884]
[1734453940862,0.616682,106650.0,106640.0,0.046884]
[1734453941060,0.44444236,106650.0,106640.0,0.046884]
[1734453941255,0.49132136,106650.0,106640.0,0.046884]
[1734453941965,0.407679,106650.0,106640.0,0.046884]
[1734453942351,0.046879,106650.0,106640.0,0.046884]
[1734453943459,0.407679,106650.0,106640.0,0.046884]
[1734453943761,0.0660396,106650.0,106640.0,0.046884]
[1734453944357,0.4268396,106650.0,106640.0,0.046884]
[1734453944659,0.4268396,106650.0,106640.0,0.06182722]
[1734453944963,0.0660396,106650.0,106640.0,0.06182722]
[1734453945461,0.0660396,106650.0,106640.0,0.046884]
[1734453945662,0.0660396,106650.0,106630.0,0.1921]
[1734453945868,0.046884,106640.0,106630.0,0.238986]
[1734453946569,0.046888,106630.0,106620.0,0.90933446]
[1734453947164,0.558,106640.0,106630.0,0.046888]
[1734453947165,1.744088,106640.0,106630.0,0.046888]
[1734453947361,2.104888,106640.0,106630.0,0.046888]
[1734453949165,0.407688,106640.0,106630.0,0.046888]
[1734453949766,1.907688,106640.0,106630.0,0.046888]
[1734453951377,2.102888,106640.0,106630.0,0.046888]
[1734453952964,2.18653036,106640.0,106630.0,0.046888]
[1734453953771,0.046888,106630.0,106620.0,0.06140885]
[1734453953972,0.49222793,106630.0,106610.0,1.01290178]
[1734453954175,0.49222793,106630.0,106610.0,0.45320178]
[1734453954176,0.13143293,106620.0,106610.0,0.45320178]
[1734453954366,0.046893,106620.0,106610.0,0.04830178]
[1734453955069,0.85474236,106630.0,106610.0,0.04830178]
[1734453955268,0.90163236,106630.0,106620.0,0.046893]
[1734453956370,0.54083236,106630.0,106620.0,0.046893]
[1734453956975,0.81799,106630.0,106620.0,0.046893]
[1734453957178,2.11908439,106640.0,106620.0,0.046893]
[1734453957376,2.11788438,106640.0,106630.0,0.046888]
[1734453958264,0.046892,106630.0,106620.0,0.04689]
[1734453958464,0.49223193,106630.0,106620.0,0.04689]
[1734453959679,0.046893,106620.0,106610.0,0.42377925]
[1734453961172,0.61529,106630.0,106620.0,0.046893]
[1734453961674,0.19636,106640.0,106620.0,0.62366586]
[1734453961877,0.22166758,106650.0,106640.0,0.046884]
[1734453962071,0.02056758,106650.0,106640.0,0.49222393]
[1734453962376,0.00140698,106650.0,106640.0,0.49222393]
[1734453962768,0.00140698,106650.0,106640.0,0.93817868]
[1734453963968,0.00140698,106650.0,106640.0,0.49222393]
[1734453964369,0.22799673,106670.0,106660.0,0.046875]
[1734453964370,0.01889673,106670.0,106660.0,0.046875]
[1734453964673,0.01889673,106670.0,106660.0,0.49221493]
[1734453964985,0.06576773,106670.0,106660.0,0.046875]
[1734453966269,0.42656773,106670.0,106660.0,0.046875]
[1734453966475,0.06576773,106670.0,106660.0,0.046875]
[1734453966973,0.42656773,106670.0,106660.0,0.046875]
[1734453967182,0.046875,106660.0,106650.0,0.668579]
[1734453967378,0.046875,106660.0,106650.0,0.246979]
[1734453968575,0.046879,106650.0,106640.0,0.407682]
[1734453968978,0.046879,106650.0,106640.0,0.0615509]
[1734453969483,1.546879,106650.0,106640.0,0.0615509]
[1734453970083,0.7602,106660.0,106640.0,0.14609083]
[1734453970282,0.446277,106660.0,106650.0,0.046879]
[1734453970875,0.446277,106660.0,106650.0,0.13141893]
[1734453971078,0.37969673,106670.0,106660.0,0.046875]
[1734453971287,0.37969673,106670.0,106660.0,0.13141493]
[1734453971787,0.01889673,106670.0,106660.0,0.13141493]
[1734453972582,0.06576773,106670.0,106660.0,0.13141493]
[1734453972990,0.01889673,106670.0,106660.0,0.49221493]
[1734453973176,0.01889673,106670.0,106660.0,0.13141493]
[1734453973376,0.60390092,106680.0,106660.0,0.08453993]
[1734453973679,0.19623192,106680.0,106670.0,0.49221093]
[1734453974083,0.15408409,106680.0,106670.0,0.49221093]
[1734453974284,0.11206886,106680.0,106670.0,0.49221093]
[1734453975081,0.4077482,106700.0,106670.0,0.49230611]
[1734453975392,0.4077482,106700.0,106690.0,0.046862]
[1734453975594,0.42666681,106700.0,106690.0,0.046862]
[1734453976093,0.06586681,106700.0,106690.0,0.046862]
[1734453976996,0.06586681,106700.0,106680.0,0.13140593]
[1734453977285,0.046862,106690.0,106680.0,0.13140293]
[1734453977879,0.407662,106690.0,106680.0,0.046863]
[1734453978189,0.407662,106690.0,106680.0,0.13140293]
[1734453978190,1.8608,106690.0,106680.0,0.13140293]
[1734453978379,0.37980681,106700.0,106690.0,0.046862]
[1734453978584,0.37980681,106700.0,106690.0,0.13140193]
[1734453978792,1.87980681,106700.0,106690.0,0.13140193]
[1734453979000,0.01900681,106700.0,106690.0,0.13140193]
[1734453979291,0.06586481,106700.0,106690.0,0.13140193]
[1734453979486,0.01900681,106700.0,106690.0,0.046862]
[1734453980280,0.01900681,106700.0,106690.0,0.13140193]
[1734453981485,8.82e-05,106700.0,106690.0,0.69610193]
[1734453981690,8.82e-05,106700.0,106690.0,0.33530193]
[1734453982095,0.0469462,106700.0,106690.0,0.33530193]
[1734453982894,0.4077462,106700.0,106690.0,0.250762]
[1734453983084,0.0469462,106700.0,106690.0,0.250762]
[1734453983486,0.4077462,106700.0,106690.0,0.250762]
[1734453983679,0.0469462,106700.0,106690.0,0.250762]
[1734453983880,0.0469462,106700.0,106690.0,0.33530193]
[1734453984491,8.82e-05,106700.0,106690.0,0.33530193]
[1734453984879,0.20700619,106720.0,106700.0,0.046857]
[1734453985085,0.00140619,106720.0,106710.0,0.13139293]
[1734453985285,0.00140619,106720.0,106710.0,0.57673286]
[1734453985689,0.00140619,106720.0,106710.0,0.21593286]
[1734453985993,0.00140619,106720.0,106710.0,0.13139293]
[1734453986384,0.04825519,106720.0,106710.0,0.13139293]
[1734453986790,0.04825519,106720.0,106710.0,0.046853]
[1734453987089,0.046853,106710.0,106700.0,0.13139493]
[1734453987790,0.046858,106700.0,106690.0,0.046861]
[1734453987990,0.407658,106700.0,106690.0,0.046861]
[1734453988184,1.907658,106700.0,106690.0,0.046861]
[1734453988586,1.907658,106700.0,106690.0,0.13140093]
[1734453988785,0.3608,106700.0,106690.0,0.13140093]
[1734453988985,0.1926,106710.0,106690.0,0.13140093]
[1734453989191,0.5534,106710.0,106700.0,0.13139793]
[1734453989486,2.100253,106710.0,106700.0,0.13139793]
[1734453990385,0.600253,106710.0,106700.0,0.13139793]
[1734453990984,0.239453,106710.0,106700.0,0.13139793]
[1734453992493,2.05900619,106720.0,106710.0,0.046853]
[1734453992687,0.36220619,106720.0,106710.0,0.13139293]
[1734453993701,0.04825519,106720.0,106710.0,0.13139293]
[1734453993888,0.00307586,106720.0,106710.0,0.13139293]
[1734453994301,0.00307586,106720.0,106710.0,0.49219293]
[1734453994802,0.00307586,106720.0,106710.0,0.76283286]
[1734453995197,0.0001176,106740.0,106730.0,0.046844]
[1734453995402,0.0001176,106740.0,106730.0,0.407644]
[1734453995586,0.0001176,106740.0,106730.0,0.49218393]
[1734453995792,0.0001176,106740.0,106730.0,0.13138393]
[1734453996196,0.0001176,106740.0,106730.0,0.49218393]
[1734453996396,0.0001176,106740.0,106730.0,0.87748393]
[1734454000704,0.0001176,106740.0,106730.0,0.89021117]
[1734454000995,0.4077576,106740.0,106730.0,0.05957124]
[1734454001199,0.0469576,106740.0,106730.0,0.05957124]
[1734454001601,1.5469576,106740.0,106730.0,0.05957124]
[1734454001994,1.54824355,106740.0,106730.0,0.05957124]
[1734454002191,1.50140355,106740.0,106730.0,0.14411117]
[1734454002393,0.00140355,106740.0,106730.0,0.14411117]
[1734454002590,0.40904355,106740.0,106730.0,0.05957124]
[1734454002801,1.90904355,106740.0,106730.0,0.05957124]
[1734454003908,0.40904355,106740.0,106730.0,0.05957124]
[1734454004294,1.90904355,106740.0,106730.0,0.05957124]
[1734454004691,0.40904355,106740.0,106730.0,0.05957124]
[1734454004895,0.00140355,106740.0,106730.0,0.14411117]
[1734454005097,0.00140355,106740.0,106730.0,0.50491117]
[1734454005291,0.00140355,106740.0,106730.0,0.5894511]
[1734454005491,0.00140355,106740.0,106730.0,0.50491117]
[1734454007303,0.0001176,106740.0,106730.0,0.50491117]
[1734454007497,0.00235266,106740.0,106730.0,0.50491117]
[1734454008004,0.3608,106760.0,106750.0,0.046836]
[1734454008301,0.71581087,106770.0,106750.0,0.046836]
[1734454008302,0.57616132,106770.0,106760.0,0.046831]
[1734454008503,0.57616132,106770.0,106760.0,0.13137093]
[1734454008705,0.62298832,106770.0,106760.0,0.13137093]
[1734454009508,0.57616132,106770.0,106760.0,0.13137093]
[1734454009816,0.00140544,106770.0,106760.0,0.49226037]
[1734454010105,0.00140544,106770.0,106760.0,0.13146037]
[1734454011508,0.00140544,106770.0,106760.0,0.49226037]
[1734454015812,0.01903079,106780.0,106770.0,0.046827]
[1734454016111,0.06585279,106780.0,106770.0,0.046827]
[1734454016313,0.06585279,106780.0,106770.0,0.13136693]
[1734454016915,7.35e-05,106780.0,106770.0,0.13136693]
[1734454017101,7.35e-05,106780.0,106770.0,0.57670686]
[1734454017301,7.35e-05,106780.0,106770.0,0.76290686]
[1734454017906,7.35e-05,106780.0,106770.0,0.67836693]
[1734454019112,7.35e-05,106780.0,106770.0,0.76290686]
[1734454020024,7.35e-05,106780.0,106770.0,0.67836693]
[1734454020511,0.0468955,106780.0,106770.0,0.046827]
[1734454020706,0.4076955,106780.0,106770.0,0.046827]
[1734454020907,0.9592955,106780.0,106770.0,0.046827]
[1734454021107,0.9592955,106780.0,106770.0,0.13136693]
[1734454021309,2.4592955,106780.0,106770.0,0.13136693]
[1734454021702,0.5516735,106780.0,106770.0,0.13136693]
[1734454022307,0.1888735,106780.0,106770.0,0.13136693]
[1734454022918,0.5496735,106780.0,106770.0,0.13136693]
[1734454023119,7.35e-05,106780.0,106770.0,0.57670686]
[1734454027711,7.35e-05,106780.0,106770.0,0.49216693]
[1734454028419,7.35e-05,106780.0,106770.0,0.75580686]
[1734454031718,0.6548,106800.0,106780.0,0.046821]
[1734454032015,0.6548,106800.0,106790.0,0.13135793]
[1734454032812,0.2865,106800.0,106790.0,0.49215793]
[1734454033211,0.2865,106800.0,106790.0,0.43186249]
[1734454033419,0.17581558,106820.0,106790.0,0.56332992]
[1734454033619,0.17441061,106820.0,106810.0,0.13134893]
[1734454034024,0.00011061,106820.0,106810.0,0.13134893]
[1734454034613,0.00011061,106820.0,106810.0,0.49214893]
[1734454038023,0.00011061,106820.0,106810.0,0.83674893]
[1734454039117,0.19900881,106840.0,106810.0,0.83674893]
[1734454039118,0.1807,106840.0,106830.0,0.0468]
[1734454039321,0.7193,106850.0,106840.0,0.046796]
[1734454039517,0.29217643,106860.0,106840.0,0.13133593]
[1734454039723,0.29217643,106860.0,106850.0,0.13133193]
[1734454039922,0.1807,106860.0,106850.0,0.13133193]
[1734454040125,0.1807,106860.0,106850.0,0.13145235]
[1734454040323,0.1807,106860.0,106850.0,0.49225235]
[1734454041120,0.227487,106860.0,106850.0,0.13145235]
[1734454041325,0.588287,106860.0,106850.0,0.04691242]
[1734454041640,0.588287,106860.0,106850.0,0.13145235]
[1734454041839,0.227487,106860.0,106850.0,0.13145235]
[1734454042126,0.1807,106860.0,106850.0,0.49225235]
[1734454047330,0.7193,106870.0,106860.0,0.046787]
[1734454047630,0.766083,106870.0,106860.0,0.13132693]
[1734454048528,0.5341,106870.0,106860.0,0.13132693]
[1734454048924,0.3608,106870.0,106860.0,0.13132693]
[1734454049125,0.8938414,106880.0,106870.0,0.046783]
[1734454049325,0.8938414,106880.0,106870.0,0.13132293]
[1734454049528,0.9406204,106880.0,106870.0,0.13132293]
[1734454050321,0.51441882,106880.0,106870.0,0.13132293]
[1734454050529,0.33851882,106880.0,106870.0,0.49212293]
[1734454050729,0.17021882,106880.0,106870.0,0.49212293]
[1734454051329,0.00041882,106880.0,106870.0,0.49212293]
[1734454054826,0.00041882,106880.0,106870.0,0.407583]
[1734454054827,0.04719782,106880.0,106870.0,0.407583]
[1734454055031,0.00041882,106880.0,106870.0,0.49212293]
[1734454058346,0.6043,106900.0,106890.0,0.046774]
[1734454058643,0.6043,106900.0,106890.0,0.57665386]
[1734454060245,0.6043,106900.0,106890.0,0.49211393]
[1734454060446,0.65107,106900.0,106890.0,0.13131393]
[1734454060648,1.01187,106900.0,106890.0,0.13131393]
[1734454061741,0.046774,106890.0,106880.0,0.49211693]
[1734454061941,0.046774,106890.0,106880.0,0.13131693]
[1734454062539,0.046774,106890.0,106880.0,0.046777]
[1734454062850,0.046774,106890.0,106880.0,0.13131693]
[1734454063242,1.01187,106900.0,106890.0,0.046774]
[1734454063441,1.01187,106900.0,106890.0,0.13131393]
[1734454063747,0.4608,106900.0,106890.0,0.13131393]
[1734454064045,0.6248,106900.0,106890.0,0.13131393]
[1734454064238,0.8019,106900.0,106890.0,0.13131393]
[1734454064747,0.84867,106900.0,106890.0,0.13131393]
[1734454064936,1.01427,106900.0,106890.0,0.13131393]
[1734454065333,1.01427,106900.0,106890.0,0.046774]
[1734454065741,0.046774,106890.0,106880.0,0.05808039]
[1734454065933,0.407574,106890.0,106880.0,0.05808039]
[1734454066944,1.07897643,106900.0,106880.0,0.50342032]
[1734454067246,0.9675,106900.0,106890.0,0.13131393]
[1734454067848,1.01427,106900.0,106890.0,0.046774]
[1734454069546,1.12574643,106900.0,106890.0,0.046774]
[1734454070448,1.26509197,106900.0,106890.0,0.046774]
[1734454071539,1.12574643,106900.0,106890.0,0.046774]
[1734454072546,1.26509197,106900.0,106890.0,0.046774]
[1734454073448,1.15361554,106900.0,106890.0,0.046774]
[1734454073849,0.046774,106890.0,106880.0,0.05807939]
[1734454074044,0.51933646,106890.0,106880.0,0.046776]
[1734454076350,0.046779,106880.0,106870.0,0.14281632]
[1734454076566,0.60388139,106880.0,106870.0,0.01149639]
[1734454076746,0.046783,106870.0,106860.0,0.046786]
[1734454077050,0.046787,106860.0,106850.0,0.04691042]
[1734454077347,0.407587,106860.0,106850.0,0.05819981]
[1734454077746,0.61606246,106870.0,106860.0,0.046787]
[1734454077953,0.11176246,106870.0,106860.0,0.57666686]
[1734454078151,4.6e-07,106870.0,106860.0,0.74736686]
[1734454078345,0.17730374,106890.0,106880.0,0.046779]
[1734454078553,0.17730374,106890.0,106880.0,0.13131893]
[1734454078949,0.17730374,106890.0,106880.0,0.49211893]
[1734454079549,0.1,106900.0,106890.0,0.046774]
[1734454079848,0.1,106900.0,106890.0,0.407574]
[1734454080052,0.1,106900.0,106890.0,0.49211393]
[1734454080440,0.1,106900.0,106890.0,0.74674313]
[1734454083054,0.1,106900.0,106890.0,0.75820343]
[1734454085161,0.1,106900.0,106890.0,0.6736635]
[1734454085852,0.50757,106900.0,106890.0,0.05832357]
[1734454086049,0.68327,106900.0,106890.0,0.05832357]
[1734454086252,0.68327,106900.0,106890.0,0.01154957]
[1734454086560,0.32247,106900.0,106890.0,0.05832357]
[1734454086952,0.68327,106900.0,106890.0,0.05832357]
[1734454087552,0.68327,106900.0,106890.0,0.1428635]
[1734454088051,0.68327,106900.0,106890.0,0.01154957]
[1734454088258,0.76780993,106900.0,106890.0,8.927e-05]
[1734454088453,0.68327,106900.0,106890.0,8.927e-05]
[1734454088659,0.68327,106900.0,106890.0,0.04686327]
[1734454089453,0.68327,106900.0,106890.0,8.927e-05]
[1734454089658,0.046783,106870.0,106860.0,0.04818625]
[1734454089862,0.407583,106870.0,106860.0,0.04818625]
[1734454090159,0.407583,106870.0,106860.0,0.00140325]
[1734454090160,0.49212293,106870.0,106860.0,0.00140325]
[1734454090366,0.046787,106860.0,106850.0,0.05843827]
[1734454090570,0.83002693,106860.0,106850.0,0.05850502]
[1734454091060,0.745487,106860.0,106850.0,0.05850502]
[1734454092560,0.745487,106860.0,106850.0,0.01171502]
[1734454092756,0.83002693,106860.0,106850.0,6.675e-05]
[1734454093359,0.046796,106840.0,106830.0,0.046799]
[1734454093561,0.407596,106840.0,106830.0,0.046799]
[1734454093759,0.573296,106840.0,106830.0,0.046799]
[1734454094262,0.573296,106840.0,106830.0,0.0468789]
[1734454094461,0.65783593,106840.0,106830.0,0.05856142]
[1734454094665,0.65792679,106840.0,106830.0,0.05856142]
[1734454095167,0.57338686,106840.0,106830.0,0.05856142]
[1734454098259,0.57338686,106840.0,106830.0,0.01176242]
[1734454098454,1.01872679,106840.0,106830.0,0.01176242]
[1734454099075,1.01872679,106840.0,106830.0,7.99e-05]
[1734454099865,1.31872679,106840.0,106830.0,7.99e-05]
[1734454100260,2.81872679,106840.0,106830.0,7.99e-05]
[1734454100970,2.51872679,106840.0,106830.0,7.99e-05]
[1734454101267,1.01872679,106840.0,106830.0,7.99e-05]
[1734454101466,1.31872679,106840.0,106830.0,7.99e-05]
[1734454101858,2.81872679,106840.0,106830.0,7.99e-05]
[1734454102768,1.31872679,106840.0,106830.0,7.99e-05]
[1734454103359,1.31872679,106840.0,106800.0,0.61573993]
[1734454103360,0.046809,106810.0,106800.0,0.046812]
[1734454103559,0.407609,106810.0,106800.0,0.05842914]
[1734454103968,0.496509,106810.0,106800.0,0.05842914]
[1734454104357,0.58104893,106810.0,106800.0,0.01168269]
[1734454104962,0.58104893,106810.0,106800.0,6.555e-05]
[1734454105359,0.4497,106810.0,106800.0,0.04687955]
[1734454105564,0.00112001,106820.0,106800.0,0.49221948]
[1734454105767,0.50545111,106840.0,106800.0,0.49221948]
[1734454105768,0.00149555,106840.0,106810.0,0.49214893]
[1734454106064,0.40909155,106840.0,106830.0,0.0468]
[1734454106565,0.40909155,106840.0,106810.0,0.49214593]
[1734454106566,0.046804,106830.0,106820.0,0.046803]
[1734454106764,0.407604,106830.0,106820.0,0.046803]
[1734454106966,0.04829355,106840.0,106820.0,0.13134293]
[1734454107178,0.04829355,106840.0,106830.0,0.13133993]
[1734454107375,0.36229555,106840.0,106830.0,0.13133993]
[1734454107674,0.04829155,106840.0,106830.0,0.21813993]
[1734454107869,0.00149555,106840.0,106830.0,0.21813993]
[1734454108174,0.40909155,106840.0,106830.0,0.1336]
[1734454109667,0.40909155,106840.0,106830.0,0.0868]
[1734454109871,0.0468,106830.0,106820.0,0.01127074]
[1734454110175,0.0468,106830.0,106820.0,0.046805]
[1734454110176,0.4076,106830.0,106820.0,0.046805]
[1734454110367,0.3608,106830.0,106820.0,0.13134493]
[1734454110674,0.40909355,106840.0,106830.0,0.0468]
[1734454110875,0.04829355,106840.0,106830.0,0.0468]
[1734454111373,0.04829355,106840.0,106830.0,0.13133993]
[1734454111571,0.40909355,106840.0,106830.0,0.13133993]
[1734454111876,0.36229555,106840.0,106830.0,0.13133993]
[1734454112067,0.00149555,106840.0,106830.0,0.21733993]
[1734454112967,0.00149555,106840.0,106830.0,0.30713993]
[1734454113979,0.00149555,106840.0,106830.0,0.2226]
[1734454114273,0.04829155,106840.0,106830.0,0.2226]
[1734454114468,0.00149555,106840.0,106830.0,0.23369329]
[1734454117274,0.00149555,106840.0,106830.0,0.72054172]
[1734454118271,9.086e-05,106840.0,106830.0,0.72054172]
[1734454118576,9.086e-05,106840.0,106830.0,1.15928262]
[1734454118776,0.51148987,106870.0,106860.0,0.046787]
[1734454119070,0.40898309,106880.0,106870.0,0.046783]
[1734454119464,0.046783,106870.0,106860.0,0.301785]
[1734454119664,0.046783,106870.0,106860.0,0.30186771]
[1734454120362,0.407583,106870.0,106860.0,0.30186771]
[1734454120663,0.407583,106870.0,106860.0,0.08328271]
[1734454121077,0.407583,106870.0,106860.0,8.271e-05]
[1734454121585,0.407583,106870.0,106860.0,0.04686971]
[1734454121770,0.046783,106870.0,106860.0,0.04686971]
[1734454121971,0.40898409,106880.0,106870.0,0.046783]
[1734454122171,0.01869569,106880.0,106870.0,0.17283143]
[1734454122663,0.01869569,106880.0,106870.0,0.25603143]
[1734454123276,0.49316863,106890.0,106880.0,0.046779]
[1734454125687,0.046779,106880.0,106870.0,0.306882]
[1734454125879,0.046779,106880.0,106870.0,0.3174622]
[1734454128087,0.407579,106880.0,106870.0,0.3174622]
[1734454128478,0.046779,106880.0,106870.0,0.3174622]
[1734454128886,0.407579,106880.0,106870.0,0.3174622]
[1734454129087,0.046779,106880.0,106870.0,0.3174622]
[1734454129484,0.407579,106880.0,106870.0,0.0573622]
[1734454131085,0.407579,106880.0,106870.0,0.0105802]
[1734454131287,0.046783,106870.0,106860.0,0.04686771]
[1734454131489,0.407583,106870.0,106860.0,0.04686771]
[1734454132177,0.407583,106870.0,106860.0,0.05767554]
[1734454132580,0.407583,106870.0,106860.0,0.01089054]
[1734454132781,0.407583,106870.0,106860.0,0.05767754]
[1734454133392,0.3608,106880.0,106870.0,0.046783]
[1734454134104,0.407579,106880.0,106870.0,0.046783]
[1734454136898,0.46514269,106890.0,106880.0,0.046779]
[1734454137189,0.51191669,106890.0,106880.0,0.13075988]
[1734454137783,0.46514269,106890.0,106880.0,0.13075988]
[1734454139195,0.10434269,106890.0,106880.0,0.13075988]
[1734454139890,9.463e-05,106890.0,106880.0,0.13075988]
[1734454140288,9.463e-05,106890.0,106880.0,0.49155988]
[1734454140488,9.463e-05,106890.0,106880.0,0.50226509]
[1734454141796,0.40766863,106890.0,106880.0,0.14146509]
[1734454142190,0.40766863,106890.0,106880.0,0.05748421]
[1734454145296,0.046783,106870.0,106860.0,0.04686871]
[1734454145497,0.407583,106870.0,106860.0,0.04686871]
[1734454145697,0.492283,106870.0,106860.0,8.271e-05]
[1734454145997,0.576883,106870.0,106860.0,0.13085059]
[1734454146188,0.4455,106870.0,106860.0,0.13085059]
[1734454146595,0.4455,106870.0,106860.0,0.04686971]
[1734454146596,0.492283,106870.0,106860.0,0.04686971]
[1734454147605,0.492283,106870.0,106860.0,0.05790716]
[1734454147802,0.492283,106870.0,106860.0,0.01112016]
[1734454148101,0.93706388,106870.0,106860.0,0.01112016]
[1734454148301,0.853083,106870.0,106860.0,0.01112016]
[1734454149500,0.853083,106870.0,106860.0,8.271e-05]
[1734454150204,0.853083,106870.0,106860.0,0.04686971]
[1734454150404,0.853083,106870.0,106860.0,8.271e-05]
[1734454150604,0.93706388,106870.0,106860.0,8.271e-05]
[1734454152707,0.046796,106840.0,106830.0,1.78026385]
[1734454152911,0.3608,106840.0,106830.0,1.86424473]
[1734454153109,0.3608,106840.0,106830.0,1.31300188]
[1734454153309,0.3608,106840.0,106830.0,0.81640573]
[1734454153512,0.407596,106840.0,106830.0,0.81640573]
[1734454153714,0.407596,106840.0,106830.0,1.02532877]
[1734454154014,0.3608,106840.0,106830.0,0.58510473]
[1734454154408,0.3608,106840.0,106830.0,0.63870316]
[1734454154800,0.08232001,106860.0,106840.0,0.046796]
[1734454155109,0.44690409,106870.0,106860.0,0.046787]
[1734454155310,0.44690409,106870.0,106860.0,0.13076788]
[1734454155513,0.44690409,106870.0,106860.0,0.046787]
[1734454156016,0.49368709,106870.0,106860.0,0.046787]